[Event "Romanian-ch Youth Open U8 2024"]
[Site "Eforie Nord"]
[Date "2024.04.14"]
[Round "4.2"]
[White "Mihai, Adam-Alexandru"]
[Black "Liga, Matei"]
[Result "1-0"]
[ECO "D53"]
[WhiteElo "1533"]
[BlackElo "1504"]
[Annotator "NA RC"]
[PlyCount "71"]
[EventDate "2024.04.10"]
[EventType "swiss"]
[EventCountry "ROU"]
[SourceTitle "playchess.com"]
[Source "ChessBase"]
[SourceQuality "1"]
[TimeControl "5400+30"]

1. d4 {[%emt 0:00:02]} Nf6 {[%emt 0:00:13]} 2. c4 {[%emt 0:00:26]} e6 {[%emt 0:00:35]} 3. Nc3 {[%emt 0:01:01]} d5 {[%emt 0:00:23]} 4. Bg5 {[%emt 0:00:42]} Be7 {[%emt 0:00:26]} 5. e3 {[%emt 0:01:09]} h6 {[%emt 0:00:18]} 6. Bh4 {[%emt 0:00:43]} Nc6 {[%emt 0:02:27]} 7. Nf3 {[%emt 0:00:49]} Na5 {[%emt 0:03:36]} 8. cxd5 {[%emt 0:00:46]} exd5 {[%emt 0:00:09]} 9. Bb5+ {[%emt 0:02:21]} Nc6 {[%emt 1:26:53]} 10. Ne5 {[%emt 0:01:33]} Bd7 {[%emt 0:00:00]} 11. Bxc6 {[%emt 0:02:14]} Bxc6 {[%emt 0:00:00]} 12. Nxc6 {[%emt 0:00:07]} bxc6 {[%emt 0:00:00]} 13. Bxf6 {[%emt 0:02:35]} Bxf6 {[%emt 0:00:00]} 14. Qc2 {[%emt 0:00:55]} Qe7 {[%emt 0:00:00]} 15. Nxd5 {[%emt 0:04:20]} Qd6 {[%emt 0:00:00]} 16. Nxf6+ {[%emt 0:00:13]} Qxf6 {[%emt 0:00:00]} 17. O-O {[%emt 0:00:18]} O-O {[%emt 0:00:00]} 18. Rac1 {[%emt 0:00:17]} Qe6 {[%emt 0:00:00]} 19. b3 {[%emt 0:00:36]} Rad8 {[%emt 0:00:00]} 20. Qxc6 {[%emt 0:01:16]} Rd6 {[%emt 0:00:00]} 21. Qc4 {[%emt 0:01:14]} Qg4 {[%emt 0:00:00]} 22. h3 {[%emt 0:00:37]} Qh5 {[%emt 0:00:00]} 23. Qc5 {[%emt 0:01:02]} Rd5 {[%emt 0:00:00]} 24. Qxc7 {[%emt 0:00:32]} Rg5 {[%emt 0:00:00]} 25. Qh2 {[%emt 0:00:30]} Re8 {[%emt 0:00:00]} 26. Rc6 {[%emt 0:03:23]} Qf3 {[%emt 0:00:00]} 27. Rc5 {[%emt 0:01:04]} Rg6 {[%emt 0:00:00]} 28. Re5 {[%emt 0:01:21]} Rc8 {[%emt 0:00:00]} 29. g4 {[%emt 0:02:29]} Rc2 {[%emt 0:00:00]} 30. Qg3 {[%emt 0:00:44]} Qe2 {[%emt 0:00:00]} 31. Re8+ {[%emt 0:00:40]} Kh7 {[%emt 0:00:00]} 32. Qb8 {[%emt 0:03:13]} Rf6 {[%emt 0:00:00]} 33. Rh8+ {[%emt 0:01:08]} Kg6 {[%emt 0:00:00]} 34. Rxh6+ {[%emt 0:00:51]} Kg5 {[%emt 0:00:00]} 35. Qe5+ {[%emt 0:00:52]} Kxh6 {[%emt 0:00:00]} 36. Qh5# {[%emt 1:06:27]} 1-0

[Event "Romanian-ch Youth Open U8 2024"]
[Site "Eforie Nord"]
[Date "2024.04.14"]
[Round "4.3"]
[White "Grigorescu, Stefan"]
[Black "Vasiloi, Leonard"]
[Result "0-1"]
[ECO "B01"]
[WhiteElo "1546"]
[BlackElo "1547"]
[Annotator "NA RC"]
[PlyCount "138"]
[EventDate "2024.04.10"]
[EventType "swiss"]
[EventCountry "ROU"]
[SourceTitle "playchess.com"]
[Source "ChessBase"]
[SourceQuality "1"]
[TimeControl "5400+30"]

1. e4 {[%emt 0:00:02]} d5 {[%emt 0:00:15]} 2. exd5 {[%emt 0:00:08]} Qxd5 {[%emt 0:00:20]} 3. Nc3 {[%emt 0:00:08]} Qa5 {[%emt 0:00:15]} 4. d4 {[%emt 0:00:14]} c6 {[%emt 0:00:07]} 5. Nf3 {[%emt 0:00:07]} Nf6 {[%emt 0:00:11]} 6. Bd3 {[%emt 0:00:11]} Bg4 {[%emt 0:00:08]} 7. Bf4 {[%emt 0:00:47]} e6 {[%emt 0:00:26]} 8. Qe2 {[%emt 0:00:27]} Bb4 {[%emt 0:01:34]} 9. Qd2 {[%emt 0:00:58]} Nd5 {[%emt 0:00:57]} 10. a3 {[%emt 0:00:53]} Nxc3 {[%emt 0:00:53]} 11. Qc1 {[%emt 0:00:58]} Nd5+ {[%emt 0:07:15]} 12. axb4 {[%emt 0:00:25]} Qxb4+ {[%emt 0:00:28]} 13. Bd2 {[%emt 0:00:17]} Qe7 {[%emt 0:00:50]} 14. c4 {[%emt 0:01:00]} Nf6 {[%emt 0:07:19]} 15. Ne5 {[%emt 0:01:32]} Bh5 {[%emt 0:04:40]} 16. b4 {[%emt 0:01:23]} Nbd7 {[%emt 0:03:33]} 17. b5 {[%emt 0:00:53]} c5 {[%emt 0:00:24]} 18. Ba5 {[%emt 0:03:01]} cxd4 {[%emt 0:06:38]} 19. Nxd7 {[%emt 0:04:22]} Nxd7 {[%emt 0:01:07]} 20. Be4 {[%emt 0:00:35]} O-O {[%emt 0:04:58]} 21. Qd2 {[%emt 0:00:49]} Qf6 {[%emt 0:10:35]} 22. Bb4 {[%emt 0:01:31]} d3 {[%emt 0:04:13]} 23. O-O {[%emt 0:00:58]} Rfd8 {[%emt 0:04:06]} 24. Bd6 {[%emt 0:01:06]} Be2 {[%emt 0:08:05]} 25. Rfe1 {[%emt 0:00:47]} Qd4 {[%emt 0:01:15]} 26. Bxb7 {[%emt 0:01:33]} Qxd6 {[%emt 0:00:56]} 27. Bxa8 {[%emt 0:00:43]} Ne5 {[%emt 0:03:58]} 28. c5 {[%emt 0:05:08]} Qd4 {[%emt 0:11:00]} 29. Ra2 {[%emt 0:05:24]} Nc4 {[%emt 0:00:35]} 30. Qb4 {[%emt 0:10:07]} d2 {[%emt 0:00:38]} 31. Rxe2 {[%emt 0:02:11]} d1=Q+ {[%emt 0:00:18]} 32. Re1 {[%emt 0:57:52]} Q4d2 {[%emt 0:18:33]} 33. Qxd2 {[%emt 0:00:00]} Rxd2 {[%emt 0:00:00]} 34. Ra1 {[%emt 0:00:00]} Qc2 {[%emt 0:00:00]} 35. Be4 {[%emt 0:00:00]} Qc3 {[%emt 0:00:00]} 36. Rxa7 {[%emt 0:00:00]} g6 {[%emt 0:00:00]} 37. b6 {[%emt 0:00:00]} Ra2 {[%emt 0:00:00]} 38. Rb1 {[%emt 0:00:00]} Re2 {[%emt 0:00:00]} 39. h3 {[%emt 0:00:00]} Re1+ {[%emt 0:00:00]} 40. Kh2 {[%emt 0:00:00]} Rxb1 {[%emt 0:00:00]} 41. Bxb1 {[%emt 0:00:00]} Na5 {[%emt 0:00:00]} 42. Rc7 {[%emt 0:00:00]} Qe5+ {[%emt 0:00:00]} 43. g3 {[%emt 0:00:00]} Qb2 {[%emt 0:00:00]} 44. Be4 {[%emt 0:00:00]} Qxf2+ {[%emt 0:00:00]} 45. Bg2 {[%emt 0:00:00]} e5 {[%emt 0:00:00]} 46. h4 {[%emt 0:00:00]} Kg7 {[%emt 0:00:00]} 47. Kh3 {[%emt 0:00:00]} Qf5+ {[%emt 0:00:00]} 48. g4 {[%emt 0:00:00]} Qd3+ {[%emt 0:00:00]} 49. Kh2 {[%emt 0:00:00]} Qc2 {[%emt 0:00:00]} 50. c6 {[%emt 0:00:00]} e4 {[%emt 0:00:00]} 51. Kg3 {[%emt 0:00:00]} Qb3+ {[%emt 0:00:00]} 52. Kf4 {[%emt 0:00:00]} Qxb6 {[%emt 0:00:00]} 53. Rc8 {[%emt 0:00:00]} Nxc6 {[%emt 0:00:00]} 54. Bxe4 {[%emt 0:00:00]} Qf2+ {[%emt 0:00:00]} 55. Bf3 {[%emt 0:00:00]} Qh2+ {[%emt 0:00:00]} 56. Ke3 {[%emt 0:00:00]} Qe5+ {[%emt 0:00:00]} 57. Kf2 {[%emt 0:00:00]} Nd4 {[%emt 0:00:00]} 58. Bg2 {[%emt 0:00:00]} Qf4+ {[%emt 0:00:00]} 59. Kg1 {[%emt 0:00:00]} Ne2+ {[%emt 0:00:00]} 60. Kh1 {[%emt 0:00:00]} Qf2 {[%emt 0:00:00]} 61. Kh2 {[%emt 0:00:00]} Nf4 {[%emt 0:00:03]} 62. Rc2 {[%emt 0:00:00]} Qxc2 {[%emt 0:00:48]} 63. Kg3 {[%emt 0:00:00]} Qxg2+ {[%emt 0:00:09]} 64. Kxf4 {[%emt 0:00:00]} Kf6 {[%emt 0:00:07]} 65. g5+ {[%emt 0:00:00]} Ke6 {[%emt 0:00:06]} 66. h5 {[%emt 0:00:00]} Qf2+ {[%emt 0:00:08]} 67. Kg4 {[%emt 0:00:00]} Qf5+ {[%emt 0:00:13]} 68. Kh4 {[%emt 0:00:00]} gxh5 {[%emt 0:00:13]} 69. Kxh5 {[%emt 0:00:00]} Qh3# {[%emt 0:00:04]} 0-1

[Event "Romanian-ch Youth Open U8 2024"]
[Site "Eforie Nord"]
[Date "2024.04.15"]
[Round "5.1"]
[White "Rosu, Razvan-Mihai"]
[Black "Mihai, Adam-Alexandru"]
[Result "1/2-1/2"]
[ECO "E01"]
[WhiteElo "1517"]
[BlackElo "1533"]
[Annotator "NA RC"]
[PlyCount "108"]
[EventDate "2024.04.10"]
[EventType "swiss"]
[EventCountry "ROU"]
[SourceTitle "playchess.com"]
[Source "ChessBase"]
[SourceQuality "1"]
[TimeControl "5400+30"]

1. d4 {[%emt 0:10:02]} Nf6 {[%emt 0:00:10]} 2. Nf3 {[%emt 0:00:06]} e6 {[%emt 0:00:10]} 3. g3 {[%emt 0:00:05]} c5 {[%emt 0:00:05]} 4. Bg2 {[%emt 0:00:06]} cxd4 {[%emt 0:00:36]} 5. Nxd4 {[%emt 0:00:05]} Nc6 {[%emt 0:00:15]} 6. O-O {[%emt 0:00:10]} d5 {[%emt 0:00:59]} 7. c4 {[%emt 0:00:24]} Nxd4 {[%emt 0:00:56]} 8. Qxd4 {[%emt 0:00:06]} Be7 {[%emt 0:00:36]} 9. Nc3 {[%emt 0:00:25]} dxc4 {[%emt 0:00:53]} 10. Qxc4 {[%emt 0:01:23]} O-O {[%emt 0:00:10]} 11. Rd1 {[%emt 0:04:11]} Qe8 {[%emt 0:01:18]} 12. Nb5 {[%emt 0:03:41]} Bd7 {[%emt 0:01:54]} 13. Nc7 {[%emt 0:00:51]} Qc8 {[%emt 0:00:15]} 14. b3 {[%emt 0:07:41]} Rb8 {[%emt 0:01:40]} 15. Bf4 {[%emt 0:12:29]} b5 {[%emt 0:01:13]} 16. Qc1 {[%emt 0:06:06]} Rb6 {[%emt 0:02:00]} 17. a4 {[%emt 0:02:45]} bxa4 {[%emt 0:00:24]} 18. bxa4 {[%emt 0:00:07]} a5 {[%emt 0:02:27]} 19. Qd2 {[%emt 0:06:04]} Rb4 {[%emt 0:02:41]} 20. Qc2 {[%emt 0:06:55]} Rd8 {[%emt 0:02:19]} 21. Bd2 {[%emt 0:04:56]} Rxa4 {[%emt 0:02:50]} 22. Rxa4 {[%emt 0:00:24]} Bxa4 {[%emt 0:00:15]} 23. Qxa4 {[%emt 0:00:12]} Qxc7 {[%emt 0:00:16]} 24. Rc1 {[%emt 0:08:23]} Qd7 {[%emt 0:00:52]} 25. Qxd7 {[%emt 0:00:11]} Rxd7 {[%emt 0:00:11]} 26. Bxa5 {[%emt 0:00:52]} h6 {[%emt 0:00:25]} 27. Kf1 {[%emt 0:03:20]} Ba3 {[%emt 0:02:26]} 28. Ra1 {[%emt 0:01:28]} Bc5 {[%emt 0:01:23]} 29. Rc1 {[%emt 0:00:41]} Ba3 {[%emt 0:00:20]} 30. Rb1 {[%emt 0:01:24]} Be7 {[%emt 0:01:50]} 31. e3 {[%emt 0:01:32]} Nd5 {[%emt 0:02:07]} 32. Bxd5 {[%emt 0:03:50]} Rxd5 {[%emt 0:00:12]} 33. Bc3 {[%emt 0:03:04]} Rh5 {[%emt 0:01:23]} 34. Kg2 {[%emt 0:01:08]} Rd5 {[%emt 0:01:02]} 35. Rb7 {[%emt 0:01:45]} Bd6 {[%emt 0:04:58]} 36. Rd7 {[%emt 0:01:41]} Bc5 {[%emt 0:00:53]} 37. Rxd5 {[%emt 0:00:14]} exd5 {[%emt 0:00:06]} 38. Kf3 {[%emt 0:00:14]} f6 {[%emt 0:00:50]} 39. Kf4 {[%emt 0:00:23]} Bd6+ {[%emt 0:00:50]} 40. Kf3 {[%emt 0:01:23]} Kf7 {[%emt 0:00:36]} 41. Ke2 {[%emt 0:00:35]} Ke6 {[%emt 0:01:27]} 42. Kd3 {[%emt 0:00:58]} Be5 {[%emt 0:01:09]} 43. Bb4 {[%emt 0:00:18]} Bd6 {[%emt 0:00:42]} 44. Bxd6 {[%emt 0:00:33]} Kxd6 {[%emt 0:00:07]} 45. Kd4 {[%emt 0:00:23]} Ke6 {[%emt 0:00:28]} 46. f4 {[%emt 0:00:22]} Kd6 {[%emt 0:00:32]} 47. g4 {[%emt 0:00:33]} g5 {[%emt 0:00:39]} 48. f5 {[%emt 0:00:23]} Kc6 {[%emt 0:00:34]} 49. h3 {[%emt 0:01:27]} Kd6 {[%emt 0:00:37]} 50. Kd3 {[%emt 0:00:19]} Ke5 {[%emt 0:00:23]} 51. Kd2 {[%emt 0:01:37]} Ke4 {[%emt 0:00:55]} 52. Ke2 {[%emt 0:00:37]} d4 {[%emt 0:00:07]} 53. exd4 {[%emt 0:00:09]} Kxd4 {[%emt 0:00:17]} 54. Kd2 {[%emt 0:00:14]} Ke4 {[%emt 1:04:47]} 1/2-1/2

[Event "Romanian-ch Youth Open U8 2024"]
[Site "Eforie Nord"]
[Date "2024.04.15"]
[Round "5.2"]
[White "Vasiloi, Leonard"]
[Black "Butochnov, Victor"]
[Result "1-0"]
[ECO "C54"]
[WhiteElo "1547"]
[BlackElo "1634"]
[Annotator "NA RC"]
[PlyCount "63"]
[EventDate "2024.04.10"]
[EventType "swiss"]
[EventCountry "ROU"]
[SourceTitle "playchess.com"]
[Source "ChessBase"]
[SourceQuality "1"]
[TimeControl "5400+30"]

1. e4 {[%emt 0:00:02]} e5 {[%emt 0:00:04]} 2. Nf3 {[%emt 0:00:05]} Nc6 {[%emt 0:00:06]} 3. Bc4 {[%emt 0:00:04]} Bc5 {[%emt 0:00:06]} 4. O-O {[%emt 0:00:04]} Nf6 {[%emt 0:00:08]} 5. d3 {[%emt 0:00:04]} O-O {[%emt 0:00:11]} 6. c3 {[%emt 0:00:11]} d6 {[%emt 0:00:41]} 7. Bb3 {[%emt 0:00:27]} Bg4 {[%emt 0:00:13]} 8. Nbd2 {[%emt 0:00:05]} Be6 {[%emt 0:02:06]} 9. Bc2 {[%emt 0:00:04]} Qd7 {[%emt 0:00:41]} 10. b4 {[%emt 0:00:29]} Bb6 {[%emt 0:00:06]} 11. a4 {[%emt 0:00:06]} a6 {[%emt 0:00:24]} 12. Qe2 {[%emt 0:08:16]} Rfe8 {[%emt 0:00:19]} 13. a5 {[%emt 0:00:38]} Ba7 {[%emt 0:00:11]} 14. Nb3 {[%emt 0:08:24]} d5 {[%emt 0:00:29]} 15. exd5 {[%emt 0:02:08]} Nxd5 {[%emt 0:02:43]} 16. Qe1 {[%emt 0:02:46]} f6 {[%emt 0:01:44]} 17. Be3 {[%emt 0:03:39]} Nf4 {[%emt 0:00:37]} 18. Bxa7 {[%emt 0:02:45]} Rxa7 {[%emt 0:00:18]} 19. Nc5 {[%emt 0:00:23]} Qf7 {[%emt 0:00:36]} 20. Ne4 {[%emt 0:18:27]} Qg6 {[%emt 0:01:52]} 21. Ng3 {[%emt 0:05:05]} Raa8 {[%emt 0:00:51]} 22. Bb1 {[%emt 0:04:21]} Rad8 {[%emt 0:01:47]} 23. d4 {[%emt 0:00:15]} Qf7 {[%emt 0:00:27]} 24. dxe5 {[%emt 0:03:19]} fxe5 {[%emt 0:01:11]} 25. Bxh7+ {[%emt 0:00:28]} Kh8 {[%emt 0:00:43]} 26. Bc2 {[%emt 0:04:11]} Bc4 {[%emt 0:00:40]} 27. Qe4 {[%emt 0:00:34]} Bd3 {[%emt 0:00:06]} 28. Bxd3 {[%emt 0:00:17]} Rxd3 {[%emt 0:00:23]} 29. Ng5 {[%emt 0:00:14]} Qg8 {[%emt 0:00:15]} 30. Nh5 {[%emt 0:21:00]} Rxc3 {[%emt 0:02:17]} 31. Nxf4 {[%emt 0:00:14]} exf4 {[%emt 0:00:07]} 32. Qg6 {[%emt 0:17:25]} 1-0

[Event "Romanian-ch Youth Open U8 2024"]
[Site "Eforie Nord"]
[Date "2024.04.15"]
[Round "5.3"]
[White "Badescu, Matei-Andrei"]
[Black "Rotescu, Vladimir-Szilard"]
[Result "1-0"]
[ECO "B13"]
[WhiteElo "1635"]
[BlackElo "1414"]
[Annotator "NA RC"]
[PlyCount "147"]
[EventDate "2024.04.10"]
[EventType "swiss"]
[EventCountry "ROU"]
[SourceTitle "playchess.com"]
[Source "ChessBase"]
[SourceQuality "1"]
[TimeControl "5400+30"]

1. e4 {[%emt 0:00:04]} c6 {[%emt 0:00:14]} 2. d4 {[%emt 0:00:05]} d5 {[%emt 0:00:11]} 3. exd5 {[%emt 0:00:05]} cxd5 {[%emt 0:00:42]} 4. Bf4 {[%emt 0:00:07]} Nc6 {[%emt 0:03:33]} 5. c3 {[%emt 0:00:10]} Nf6 {[%emt 0:03:15]} 6. Bd3 {[%emt 0:00:06]} g6 {[%emt 0:01:06]} 7. Nd2 {[%emt 0:00:20]} Bf5 {[%emt 0:03:07]} 8. Be2 {[%emt 0:00:54]} Bg7 {[%emt 0:02:11]} 9. Ngf3 {[%emt 0:00:08]} O-O {[%emt 0:02:03]} 10. O-O {[%emt 0:00:18]} Nh5 {[%emt 0:02:03]} 11. Be3 {[%emt 0:00:06]} Qc7 {[%emt 0:01:48]} 12. Nh4 {[%emt 0:00:16]} Nf6 {[%emt 0:02:04]} 13. Nxf5 {[%emt 0:00:09]} gxf5 {[%emt 0:00:42]} 14. Nf3 {[%emt 0:00:07]} e6 {[%emt 0:01:35]} 15. Qc1 {[%emt 0:00:10]} Kh8 {[%emt 0:04:06]} 16. Bh6 {[%emt 0:00:36]} Rg8 {[%emt 0:02:12]} 17. Nh4 {[%emt 0:01:43]} Ne7 {[%emt 0:01:40]} 18. Kh1 {[%emt 0:05:40]} Bf8 {[%emt 0:11:00]} 19. Bf4 {[%emt 0:01:15]} Qb6 {[%emt 0:03:14]} 20. Be5 {[%emt 0:00:10]} Bg7 {[%emt 0:00:43]} 21. Qg5 {[%emt 0:00:19]} h6 {[%emt 0:06:17]} 22. Qd2 {[%emt 0:00:12]} Kh7 {[%emt 0:02:24]} 23. Qc2 {[%emt 0:00:43]} Ne4 {[%emt 0:07:22]} 24. Bxg7 {[%emt 0:00:10]} Rxg7 {[%emt 0:00:15]} 25. f3 {[%emt 0:00:54]} Nf6 {[%emt 0:00:57]} 26. g4 {[%emt 0:00:12]} Kh8 {[%emt 0:01:26]} 27. gxf5 {[%emt 0:01:09]} Nxf5 {[%emt 0:01:36]} 28. Nxf5 {[%emt 0:00:13]} exf5 {[%emt 0:00:09]} 29. Rg1 {[%emt 0:00:26]} Rag8 {[%emt 0:01:05]} 30. Qxf5 {[%emt 0:00:41]} Rg5 {[%emt 0:02:56]} 31. Qf4 {[%emt 0:02:01]} Qe6 {[%emt 0:01:56]} 32. Rxg5 {[%emt 0:01:49]} Rxg5 {[%emt 0:02:21]} 33. Rg1 {[%emt 0:01:55]} Nh5 {[%emt 0:01:54]} 34. Qb8+ {[%emt 0:00:13]} Kg7 {[%emt 0:00:50]} 35. Rxg5+ {[%emt 0:01:47]} hxg5 {[%emt 0:00:39]} 36. Bf1 {[%emt 0:00:22]} Qe3 {[%emt 0:01:39]} 37. Qe5+ {[%emt 0:01:18]} Qxe5 {[%emt 0:00:48]} 38. dxe5 {[%emt 0:00:09]} Nf4 {[%emt 0:00:23]} 39. Bb5 {[%emt 0:00:28]} Kg6 {[%emt 0:01:05]} 40. Be8 {[%emt 0:00:08]} Kg7 {[%emt 0:00:37]} 41. Bd7 {[%emt 0:00:32]} Nd3 {[%emt 0:01:00]} 42. Bc8 {[%emt 0:00:09]} b6 {[%emt 0:01:29]} 43. Bb7 {[%emt 0:00:16]} Nxe5 {[%emt 0:00:18]} 44. Bxd5 {[%emt 0:00:09]} Nd3 {[%emt 0:00:51]} 45. b3 {[%emt 0:00:28]} Kf6 {[%emt 0:00:39]} 46. Kg1 {[%emt 0:00:13]} a5 {[%emt 0:00:59]} 47. Kf1 {[%emt 0:00:44]} Ke7 {[%emt 0:03:06]} 48. Bc4 {[%emt 0:02:58]} Ne5 {[%emt 0:00:29]} 49. Be2 {[%emt 0:00:34]} f6 {[%emt 0:00:31]} 50. Kf2 {[%emt 0:00:10]} Kd6 {[%emt 0:00:32]} 51. Ke3 {[%emt 0:00:13]} f5 {[%emt 0:00:59]} 52. f4 {[%emt 0:00:13]} gxf4+ {[%emt 0:00:49]} 53. Kxf4 {[%emt 0:00:11]} Ke6 {[%emt 0:00:31]} 54. h4 {[%emt 0:01:00]} Ng6+ {[%emt 0:00:18]} 55. Kg5 {[%emt 0:00:06]} Nxh4 {[%emt 0:00:34]} 56. Kxh4 {[%emt 0:00:21]} Ke5 {[%emt 0:00:07]} 57. Kg3 {[%emt 0:00:21]} Ke4 {[%emt 0:00:11]} 58. Kf2 {[%emt 0:00:07]} f4 {[%emt 0:21:59]} 59. Bb5 {[%emt 0:00:17]} f3 {[%emt 0:00:00]} 60. Ba6 {[%emt 0:00:10]} Kf4 {[%emt 0:00:00]} 61. Bb7 {[%emt 0:00:50]} Ke5 {[%emt 0:00:00]} 62. Kxf3 {[%emt 0:00:09]} Kd6 {[%emt 0:00:00]} 63. Ke4 {[%emt 0:00:06]} Kc5 {[%emt 0:00:00]} 64. Ke5 {[%emt 0:00:17]} b5 {[%emt 0:00:00]} 65. Bd5 {[%emt 0:00:11]} b4 {[%emt 0:00:00]} 66. c4 {[%emt 0:00:09]} Kb6 {[%emt 0:00:00]} 67. Kd6 {[%emt 0:00:10]} Ka7 {[%emt 0:00:00]} 68. c5 {[%emt 0:00:06]} Kb8 {[%emt 0:00:00]} 69. Kd7 {[%emt 0:00:11]} a4 {[%emt 0:00:00]} 70. c6 {[%emt 0:00:22]} a3 {[%emt 0:00:00]} 71. c7+ {[%emt 0:00:08]} Ka7 {[%emt 0:00:00]} 72. c8=Q {[%emt 0:00:05]} Kb6 {[%emt 0:00:00]} 73. Qc7+ {[%emt 0:00:15]} Ka6 {[%emt 0:00:00]} 74. Bc4# {[%emt 0:00:08]} 1-0

[Event "Romanian-ch Youth Open U8 2024"]
[Site "Eforie Nord"]
[Date "2024.04.16"]
[Round "6.1"]
[White "Mihai, Adam-Alexandru"]
[Black "Vasiloi, Leonard"]
[Result "0-1"]
[ECO "D53"]
[WhiteElo "1533"]
[BlackElo "1547"]
[Annotator "NA RC"]
[PlyCount "82"]
[EventDate "2024.04.10"]
[EventType "swiss"]
[EventCountry "ROU"]
[SourceTitle "playchess.com"]
[Source "ChessBase"]
[SourceQuality "1"]
[TimeControl "5400+30"]

1. d4 {[%emt 0:00:04]} d5 {[%emt 0:00:07]} 2. c4 {[%emt 0:00:05]} e6 {[%emt 0:00:04]} 3. Nc3 {[%emt 0:00:07]} Nf6 {[%emt 0:00:05]} 4. cxd5 {[%emt 0:00:11]} exd5 {[%emt 0:00:24]} 5. Bg5 {[%emt 0:00:13]} Be7 {[%emt 0:00:15]} 6. e3 {[%emt 0:00:27]} h6 {[%emt 0:00:13]} 7. Bxf6 {[%emt 0:00:22]} Bxf6 {[%emt 0:00:09]} 8. Bd3 {[%emt 0:00:25]} c6 {[%emt 0:05:09]} 9. Nf3 {[%emt 0:00:34]} Be6 {[%emt 0:01:00]} 10. O-O {[%emt 0:00:26]} Nd7 {[%emt 0:00:39]} 11. Qc2 {[%emt 0:02:59]} O-O {[%emt 0:02:54]} 12. Nd2 {[%emt 0:05:37]} c5 {[%emt 0:04:15]} 13. Ne2 {[%emt 0:01:29]} Rc8 {[%emt 0:00:15]} 14. Qd1 {[%emt 0:01:17]} Qb6 {[%emt 0:04:30]} 15. dxc5 {[%emt 0:01:54]} Nxc5 {[%emt 0:00:14]} 16. Bc2 {[%emt 0:02:28]} Qxb2 {[%emt 0:10:42]} 17. Rb1 {[%emt 0:12:55]} Qe5 {[%emt 0:01:19]} 18. Nf3 {[%emt 0:01:17]} Qc7 {[%emt 0:00:18]} 19. Rc1 {[%emt 0:01:46]} Qd7 {[%emt 0:02:55]} 20. Ned4 {[%emt 0:01:34]} Rfd8 {[%emt 0:09:26]} 21. h3 {[%emt 0:04:50]} a6 {[%emt 0:01:07]} 22. Nb3 {[%emt 0:03:14]} Na4 {[%emt 0:03:50]} 23. Nbd4 {[%emt 0:02:22]} Nb2 {[%emt 0:02:41]} 24. Qd2 {[%emt 0:01:43]} Nc4 {[%emt 0:00:09]} 25. Qe2 {[%emt 0:01:59]} b5 {[%emt 0:04:19]} 26. Rfd1 {[%emt 0:00:40]} Qa7 {[%emt 0:46:31]} 27. Qd3 {[%emt 0:02:33]} Nd6 {[%emt 0:00:00]} 28. Bb1 {[%emt 0:02:25]} Qb6 {[%emt 0:00:00]} 29. Nxe6 {[%emt 0:03:04]} fxe6 {[%emt 0:00:00]} 30. Nd4 {[%emt 0:00:22]} Nf7 {[%emt 0:00:00]} 31. Kf1 {[%emt 0:15:24]} Ne5 {[%emt 0:00:00]} 32. Qh7+ {[%emt 0:01:15]} Kf7 {[%emt 0:00:00]} 33. f4 {[%emt 0:01:18]} Rh8 {[%emt 0:00:00]} 34. Rxc8 {[%emt 0:00:51]} Rxh7 {[%emt 0:00:00]} 35. Bxh7 {[%emt 0:00:17]} Nc4 {[%emt 0:00:00]} 36. Ke2 {[%emt 0:01:07]} Bxd4 {[%emt 0:00:00]} 37. Rxd4 {[%emt 0:00:44]} Qa5 {[%emt 0:00:00]} 38. Bg8+ {[%emt 0:01:12]} Ke7 {[%emt 0:00:00]} 39. f5 {[%emt 0:00:36]} Qxa2+ {[%emt 0:00:00]} 40. Kf3 {[%emt 0:00:24]} Qb3 {[%emt 0:00:00]} 41. Bxe6 {[%emt 0:00:49]} Qxe3+ {[%emt 0:00:00]} 0-1

[Event "Romanian-ch Youth Open U8 2024"]
[Site "Eforie Nord"]
[Date "2024.04.16"]
[Round "6.3"]
[White "Rosu, Razvan-Mihai"]
[Black "Liga, Matei"]
[Result "1-0"]
[ECO "D02"]
[WhiteElo "1517"]
[BlackElo "1504"]
[Annotator "NA RC"]
[PlyCount "93"]
[EventDate "2024.04.10"]
[EventType "swiss"]
[EventCountry "ROU"]
[SourceTitle "playchess.com"]
[Source "ChessBase"]
[SourceQuality "1"]
[TimeControl "5400+30"]

1. d4 {[%emt 0:10:03]} d5 {[%emt 0:00:17]} 2. Nf3 {[%emt 0:00:08]} Nf6 {[%emt 0:00:16]} 3. g3 {[%emt 0:00:05]} Bf5 {[%emt 0:00:23]} 4. Bg2 {[%emt 0:00:06]} e6 {[%emt 0:00:39]} 5. O-O {[%emt 0:00:08]} h6 {[%emt 0:00:15]} 6. c4 {[%emt 0:00:10]} c5 {[%emt 0:00:43]} 7. cxd5 {[%emt 0:00:10]} exd5 {[%emt 0:00:06]} 8. Nc3 {[%emt 0:00:22]} Nc6 {[%emt 0:01:13]} 9. Bf4 {[%emt 0:02:05]} a6 {[%emt 0:00:38]} 10. Be5 {[%emt 0:03:35]} Ne4 {[%emt 1:31:00]} 11. dxc5 {[%emt 0:02:53]} Nxe5 {[%emt 0:00:00]} 12. Nxe5 {[%emt 0:00:10]} Nxc3 {[%emt 0:00:00]} 13. bxc3 {[%emt 0:00:07]} Be6 {[%emt 0:00:00]} 14. Qa4+ {[%emt 0:01:02]} Bd7 {[%emt 0:00:00]} 15. Nxd7 {[%emt 0:00:05]} Qxd7 {[%emt 0:00:00]} 16. Qxd7+ {[%emt 0:00:02]} Kxd7 {[%emt 0:00:00]} 17. Bxd5 {[%emt 0:00:18]} Bxc5 {[%emt 0:00:00]} 18. Bxb7 {[%emt 0:00:08]} Rab8 {[%emt 0:00:00]} 19. Bxa6 {[%emt 0:02:11]} Rb2 {[%emt 0:00:00]} 20. e3 {[%emt 0:00:12]} Rhb8 {[%emt 0:00:00]} 21. Bd3 {[%emt 0:01:44]} Ra8 {[%emt 0:00:00]} 22. Rfd1 {[%emt 0:00:39]} Ke7 {[%emt 0:00:00]} 23. Bc4 {[%emt 0:00:31]} Ba3 {[%emt 0:00:00]} 24. Bb3 {[%emt 0:00:55]} Rc8 {[%emt 0:00:00]} 25. c4 {[%emt 0:01:24]} Bb4 {[%emt 0:00:00]} 26. Rab1 {[%emt 0:01:27]} Re2 {[%emt 0:00:00]} 27. Kf1 {[%emt 0:00:40]} Rd2 {[%emt 0:00:00]} 28. Rxd2 {[%emt 0:00:03]} Bxd2 {[%emt 0:00:00]} 29. Ke2 {[%emt 0:00:04]} Bc3 {[%emt 0:00:00]} 30. Kd3 {[%emt 0:00:26]} Ba5 {[%emt 0:10:00]} 31. Kd4 {[%emt 0:00:45]} Rd8+ {[%emt 0:00:00]} 32. Kc5 {[%emt 0:01:34]} Rc8+ {[%emt 0:00:00]} 33. Kb5 {[%emt 0:00:07]} Bc3 {[%emt 0:00:00]} 34. c5 {[%emt 0:00:36]} Rb8+ {[%emt 0:00:00]} 35. Kc4 {[%emt 0:00:17]} Be5 {[%emt 0:00:00]} 36. f4 {[%emt 0:01:13]} Bf6 {[%emt 0:00:00]} 37. e4 {[%emt 0:00:36]} g5 {[%emt 0:00:00]} 38. Rd1 {[%emt 0:00:33]} Bg7 {[%emt 0:00:00]} 39. c6 {[%emt 0:00:56]} Rc8 {[%emt 0:00:00]} 40. Kc5 {[%emt 0:00:53]} Ke8 {[%emt 0:00:00]} 41. Rd7 {[%emt 0:00:52]} Bf8+ {[%emt 0:00:00]} 42. Kb6 {[%emt 0:00:30]} Be7 {[%emt 0:00:00]} 43. Kb7 {[%emt 0:00:12]} Rd8 {[%emt 0:00:00]} 44. Rxd8+ {[%emt 0:00:02]} Kxd8 {[%emt 0:00:00]} 45. c7+ {[%emt 0:00:03]} Kd7 {[%emt 0:00:00]} 46. c8=Q+ {[%emt 0:00:14]} Kd6 {[%emt 0:00:00]} 47. e5# {[%emt 0:00:04]} 1-0